Workbook

Sheet ORÇAMENTO
A1: <---- NUMERAR SERVIÇOS PARA CPU | C1: Ministério do Desenvolvimento Regional
C2: Companhia de Desenvolvimento dos Vales do São Francisco e do Parnaíba
C3: 1ª Superintendência Regional
B5: OBRA: | C5: PAVIMENTAÇÃO ASFÁLTICA EM CBUQ - VIAS DIVERSAS – BAIRRO INDUSTRIAL (PIRAPORA / MG) - ITEM 2
B6: DATA: | C6: SETEMBRO / 2023 | G6: BDI Serviços: | I6: ='BDI SERV'!D31/100 -> 0.2135
B7: PRAZO DE EXECUÇÃO: 120 DIAS | G7: BDI Serviços: | I7: ='BDI FORN'!D31/100 -> 0.15
B8: ITEM | C8: DISCRIMINAÇÃO | D8: REFER. | E8: UNID. | F8: QUANT. | G8: P. UNITÁRIO | H8: P.UNIT.C/ BDI | I8: P. TOTAL
A9: A | B9: 1 | C9: SERVIÇOS PRELIMINARES | I9: =SUM(I10:I14) -> 208282.88
A10: 1 | B10: 1.1 | C10: MOBILIZAÇÃO E DESMOBILIZAÇÃO | D10: CPU.1 | E10: GL | F10: 1 | G10: =VLOOKUP(A10,CPU!$A$1:$N$4673,9) -> 16665.08 | H10: =VLOOKUP(A10,CPU!$A$1:$N$4673,10) -> 20223.07 | I10: =ROUND(F10*H10,2) -> 20223.07
A11: 2 | B11: 1.2 | C11: ADMINISTRAÇÃO LOCAL | D11: CPU.2 | E11: GL | F11: 1 | G11: =VLOOKUP(A11,CPU!$A$1:$N$4673,9) -> 118872.92 | H11: =VLOOKUP(A11,CPU!$A$1:$N$4673,10) -> 144252.29 | I11: =ROUND(F11*H11,2) -> 144252.29
A12: 3 | B12: 1.3 | C12: CANTEIRO DE OBRAS | D12: CPU.3 | E12: GL | F12: 3 | G12: =VLOOKUP(A12,CPU!$A$1:$N$4673,9) -> 9144 | H12: =VLOOKUP(A12,CPU!$A$1:$N$4673,10) -> 11096.24 | I12: =ROUND(F12*H12,2) -> 33288.72
A13: 4 | B13: 1.4 | C13: PLACA DE OBRA EM CHAPA DE AÇO GALVANIZADO | D13: 103689 | E13: M2 | F13: 9 | G13: =VLOOKUP(A13,CPU!$A$1:$N$4673,9) -> 340.5 | H13: =VLOOKUP(A13,CPU!$A$1:$N$4673,10) -> 413.2 | I13: =ROUND(F13*H13,2) -> 3718.8
A14: 5 | B14: 1.5 | C14: SERVIÇOS TOPOGRÁFICOS PARA PAVIMENTAÇÃO, INCLUSIVE NOTA DE SERVIÇO, ACOMPANHAMENTO E GREIDE | D14: 78472 | E14: M2 | F14: 17000 | G14: =VLOOKUP(A14,CPU!$A$1:$N$4673,9) -> 0.33 | H14: =VLOOKUP(A14,CPU!$A$1:$N$4673,10) -> 0.4 | I14: =ROUND(F14*H14,2) -> 6800
A15: B | B15: 2 | C15: TERRAPLANAGEM E PAVIMENTAÇÃO | I15: =SUM(I16:I22) -> 549537.9
A16: 6 | B16: 2.1 | C16: ESCAVAÇÃO HORIZONTAL EM SOLO DE 1A CATEGORIA | D16: 101116 | E16: M3 | F16: 5100 | G16: =VLOOKUP(A16,CPU!$A$1:$N$4673,9) -> 2.2 | H16: =VLOOKUP(A16,CPU!$A$1:$N$4673,10) -> 2.67 | I16: =ROUND(F16*H16,2) -> 13617
A17: 7 | B17: 2.2 | C17: CARGA, MANOBRA E DESCARGA DE SOLOS E MATERIAIS GRANULARES EM CAMINHÃO BASCULANTE | D17: 100976 | E17: M3 | F17: 5100 | G17: =VLOOKUP(A17,CPU!$A$1:$N$4673,9) -> 8.71 | H17: =VLOOKUP(A17,CPU!$A$1:$N$4673,10) -> 7.88 | I17: 40188
A18: 8 | B18: 2.3 | C18: REGULARIZAÇÃO E COMPACTAÇÃO DO SUBLEITO | D18: 100576 | E18: M2 | F18: 17000 | G18: =VLOOKUP(A18,CPU!$A$1:$N$4673,9) -> 2.57 | H18: =VLOOKUP(A18,CPU!$A$1:$N$4673,10) -> 3.12 | I18: 53040
A19: 9 | B19: 2.4 | C19: EXECUÇÃO E COMPACTAÇÃO DE BASE E OU SUB-BASE PARA PAVIMENTAÇÃO DE SOLO BRITA - 50/50 - EXCLUSIVE SOLO, ESCAVAÇÃO, CARGA E TRANSPORTE | D19: 100565 | E19: M3 | F19: 2550 | G19: =VLOOKUP(A19,CPU!$A$1:$N$4673,9) -> 104.79 | H19: =VLOOKUP(A19,CPU!$A$1:$N$4673,10) -> 127.16 | I19: 324258
A20: 10 | B20: 2.5 | C20: IMPRIMAÇÃO COM EMULSÃO ASFÁLTICA (EAI) | D20: 96401 | E20: M2 | F20: 17000 | G20: =VLOOKUP(A20,CPU!$A$1:$N$4673,9) -> 1.23 | H20: =VLOOKUP(A20,CPU!$A$1:$N$4673,10) -> 1.49 | I20: 25330
A21: 11 | B21: 2.6 | C21: PINTURA DE LIGAÇÃO COM EMULSÃO ASFÁLTICA RR-1C | D21: 96402 | E21: M2 | F21: 15600 | G21: =VLOOKUP(A21,CPU!$A$1:$N$4673,9) -> 1.01 | H21: =VLOOKUP(A21,CPU!$A$1:$N$4673,10) -> 1.23 | I21: 19188
A22: 12 | B22: 2.7 | C22: EXECUÇÃO DE PAVIMENTO COM APLICAÇÃO DE CONCRETO ASFÁLTICO USINADO A QUENTE (CBUQ), CAMADA DE ROLAMENTO - EXCLUSIVE TRANSPORTE | D22: 95995 | E22: M3 | F22: 470 | G22: =VLOOKUP(A22,CPU!$A$1:$N$4673,9) -> 129.6 | H22: =VLOOKUP(A22,CPU!$A$1:$N$4673,10) -> 157.27 | I22: 73916.9
A23: C | B23: 3 | C23: TRANSPORTE DE MATERIAIS | I23: =SUM(I24:I27) -> 528298.98
A24: 13 | B24: 3.1 | C24: TRANSPORTE COM CAMINHÃO BASCULANTE, EM VIA URBANA PAVIMENTADA | D24: 95877 | E24: M3XKM | F24: 104999.996 | G24: =VLOOKUP(A24,CPU!$A$1:$N$4673,9) -> 1.78 | H24: =VLOOKUP(A24,CPU!$A$1:$N$4673,10) -> 2.16 | I24: =ROUND(F24*H24,2) -> 226799.99
A25: 13.5 | B25: 3.2 | C25: TRANSPORTE COM CAMINHÃO BASCULANTE, EM VIA URBANA PAVIMENTADA - ADICIONAL PARA DMT EXCEDENTE A 30KM | D25: 95427 | E25: M3XKM | F25: 330000 | G25: =VLOOKUP(A25,CPU!$A$1:$N$4673,9) -> 0.73 | H25: =VLOOKUP(A25,CPU!$A$1:$N$4673,10) -> 0.89 | I25: =ROUND(F25*H25,2) -> 293700
A26: 14 | B26: 3.3 | C26: TRANSPORTE COM CAMINHÃO CARROCERIA 9T, EM VIA URBANA PAVIMENTADA | D26: 100947 | E26: TXKM | F26: 699.9960064 | G26: =VLOOKUP(A26,CPU!$A$1:$N$4673,9) -> 2.12 | H26: =VLOOKUP(A26,CPU!$A$1:$N$4673,10) -> 2.57 | I26: =ROUND(F26*H26,2) -> 1798.99
A27: 15 | B27: 3.4 | C27: TRANSPORTE COM CAMINHÃO TANQUE DE TRANSPORTE DE MATERIAL ASFÁLTICO DE 30000 L, EM VIA URBANA PAVIMENTADA (BDI DIFERENCIADO) | D27: 102331 | E27: TXKM | F27: 10000 | G27: =VLOOKUP(A27,CPU!$A$1:$N$4673,9) -> 0.52 | H27: =VLOOKUP(A27,CPU!$A$1:$N$4673,10) -> 0.6 | I27: =ROUND(F27*H27,2) -> 6000
A28: D | B28: 4 | C28: OBRAS COMPLEMENTARES | I28: =SUM(I29:I32) -> 287257.22
A29: 16 | B29: 4.1 | C29: GUIA (MEIO-FIO) E SARJETA CONJUGADOS DE CONCRETO, MOLDADA IN LOCO COM EXTRUSORA, 45 CM BASE (15 CM BASE DA GUIA + 30 CM BASE DA SARJETA) X 22 CM ALTURA | D29: 94267 | E29: M | F29: 3200 | G29: =VLOOKUP(A29,CPU!$A$1:$N$4673,9) -> 57.32 | H29: =VLOOKUP(A29,CPU!$A$1:$N$4673,10) -> 69.56 | I29: =ROUND(F29*H29,2) -> 222592
A30: 17 | B30: 4.2 | C30: FORNECIMENTO E INSTALAÇÃO DE PLACA DE SINALIZAÇÃO VIÁRIA - REGULAMENTAÇÃO OCTOGONAL (PARE) 0,60MX0,60M | D30: CPU.4 | E30: UN. | F30: 25 | G30: =VLOOKUP(A30,CPU!$A$1:$N$4673,9) -> 444.73 | H30: =VLOOKUP(A30,CPU!$A$1:$N$4673,10) -> 539.68 | I30: =ROUND(F30*H30,2) -> 13492
A31: 18 | B31: 4.3 | C31: FORNECIMENTO E INSTALAÇÃO DE PLACA DE IDENTIFICACAO DE RUA EM CHAPA DE AÇO PINTADA COM PELÍCULA DE ALTA INTENSIDADE, 45 CM X 20 CM - INCLUSIVE SUPORTE DE MADEIRA, CONFORME PROJETO (02 PLACAS POR SUPORTE) | D31: CPU.5 | E31: UN. | F31: 25 | G31: =VLOOKUP(A31,CPU!$A$1:$N$4673,9) -> 436.48 | H31: =VLOOKUP(A31,CPU!$A$1:$N$4673,10) -> 529.67 | I31: =ROUND(F31*H31,2) -> 13241.75
A32: 19 | B32: 4.4 | C32: PINTURA DE EIXO VIÁRIO SOBRE ASFALTO COM TINTA RETRORREFLETIVA A BASE DE RESINA ACRÍLICA COM MICROESFERAS DE VIDRO, APLICAÇÃO MECÂNICA COM DEMARCADORA AUTOPROPELIDA | D32: 102512 | E32: M | F32: 5349.995714 | G32: =VLOOKUP(A32,CPU!$A$1:$N$4673,9) -> 5.84 | H32: =VLOOKUP(A32,CPU!$A$1:$N$4673,10) -> 7.09 | I32: =ROUND(F32*H32,2) -> 37931.47
A33: E | B33: 5 | C33: FORNECIMENTOS - MATERIAL ASFÁLTICO (BDI DIFERENCIADO) | I33: =SUM(I34:I36) -> 915288.14
A34: 20 | B34: 5.1 | C34: AQUISIÇÃO DE EMULSÃO ASFÁLTICA PARA IMPRIMAÇÃO (EAI) - EXCLUSIVE TRANSPORTE | D34: CPU.6 | E34: T | F34: 24 | G34: =VLOOKUP(A34,CPU!$A$1:$N$4673,9) -> 2307.59 | H34: =VLOOKUP(A34,CPU!$A$1:$N$4673,10) -> 2653.73 | I34: =ROUND(F34*H34,2) -> 63689.52
A35: 21 | B35: 5.2 | C35: AQUISIÇÃO DE EMULSAO ASFALTICA CATIONICA RR-1C - EXCLUSIVE TRANSPORTE | D35: CPU.7 | E35: T | F35: 7.5 | G35: =VLOOKUP(A35,CPU!$A$1:$N$4673,9) -> 2736.39 | H35: =VLOOKUP(A35,CPU!$A$1:$N$4673,10) -> 3146.85 | I35: =ROUND(F35*H35,2) -> 23601.38
A36: 22 | B36: 5.3 | C36: AQUISIÇÃO DE CONCRETO BETUMINOSO USINADO A QUENTE (CBUQ) PARA PAVIMENTACAO ASFALTICA, PADRAO DNIT, FAIXA C, COM CAP 50/70 - EXCLUSIVE TRANSPORTE | D36: CPU.8 | E36: T | F36: 1199.996 | G36: =VLOOKUP(A36,CPU!$A$1:$N$4673,9) -> 600 | H36: =VLOOKUP(A36,CPU!$A$1:$N$4673,10) -> 690 | I36: =ROUND(F36*H36,2) -> 827997.24
B37: TOTAL GERAL DA OBRA COM BDI | I37: =SUM(I9,I15,I23,I28,I33) -> 2488665.12

Sheet CPU
A1: 1 | B1: CODEVASF | E1: COMPOSIÇÃO DE PREÇO UNITÁRIO | I1: =H11 -> 16665.08 | J1: =H13 -> 20223.07 | K1: BDI CALCULADO: | M1: =ORÇAMENTO!I6 -> 0.2135
B2: OBRA: | C2: =ORÇAMENTO!C5 -> PAVIMENTAÇÃO ASFÁLTICA EM CBUQ - VIAS DIVERSAS – BAIRRO INDUSTRIAL (PIRAPORA / MG) - ITEM 2 | G2: DATA: | H2: =ORÇAMENTO!C6 -> SETEMBRO / 2023 | K2: BDI DIFERENCIADO: | M2: ='BDI FORN'!D31/100 -> 0.15
B3: SERVIÇO: | C3: =VLOOKUP(A1,ORÇAMENTO!A10:I29,3) -> MOBILIZAÇÃO E DESMOBILIZAÇÃO | E3: Referência: | F3: CPU.1 | G3: UNIDADE: | H3: =VLOOKUP(A1,ORÇAMENTO!A10:I29,5) -> GL
B5: TIPO ITEM | C5: CODIGO ITEM | D5: DESCRIÇÃO ITEM | E5: UNIDADE ITEM | F5: COEFICIENTE | G5: PRECO UNITARIO | H5: CUSTO TOTAL
B6: COMPOSICAO | C6: 89876 | D6: CAMINHÃO BASCULANTE 14 M3, COM CAVALO MECÂNICO DE CAPACIDADE MÁXIMA DE TRAÇÃO COMBINADO DE 36000 KG, POTÊNCIA 286 CV, INCLUSIVE SEMIREBOQUE COM CAÇAMBA METÁLICA | E6: CHP DIURNO. | F6: 8 | G6: 316.13 | H6: =ROUNDDOWN(F6*G6,2) -> 2529.04
B7: COMPOSICAO | C7: 89877 | D7: CAMINHÃO BASCULANTE 14 M3, COM CAVALO MECÂNICO DE CAPACIDADE MÁXIMA DE TRAÇÃO COMBINADO DE 36000 KG, POTÊNCIA 286 CV, INCLUSIVE SEMIREBOQUE TRAÇÃO | E7: CHI DIURNO. | F7: 8 | G7: 89.75 | H7: =ROUNDDOWN(F7*G7,2) -> 718
B8: COMPOSICAO | C8: 5914640 | D8: TRANSPORTE COM CAVALO MECÂNICO COM SEMIRREBOQUE COM CAPACIDADE DE 30 T - RODOVIA PAVIMENTADA | E8: T.KM | F8: 8223 | G8: 0.58 | H8: =ROUNDDOWN(F8*G8,2) -> 4769.34
B9: COMPOSIÇÃO | C9: 88316 | D9: SERVENTE COM ENCARGOS COMPLEMENTARES | E9: H | F9: 16 | G9: 19.76 | H9: =ROUNDDOWN(F9*G9,2) -> 316.16
B10: PRODUÇÃO DA EQUIPE | E10: 0.5 | F10: CUSTO | H10: =SUM(H6:H9) -> 8332.54
B11: TOTAL | H11: =H10/E10 -> 16665.08 | I11: OK
B12: BDI % | H12: =1+$M$1 -> 1.2135
B13: TOTAL DO SERVIÇO - R$ | H13: =ROUND(H11*H12,2) -> 20223.07
A15: =A1+1 -> 2 | B15: CODEVASF | E15: COMPOSIÇÃO DE PREÇO UNITÁRIO | I15: =H30 -> 118872.92 | J15: =H32 -> 144252.29
B16: OBRA: | C16: =$C$2 -> PAVIMENTAÇÃO ASFÁLTICA EM CBUQ - VIAS DIVERSAS – BAIRRO INDUSTRIAL (PIRAPORA / MG) - ITEM 2 | G16: DATA: | H16: =$H$2 -> SETEMBRO / 2023
B17: SERVIÇO: | C17: =VLOOKUP(A15,ORÇAMENTO!$A$10:$I$29,3) -> ADMINISTRAÇÃO LOCAL | E17: SINAPI | F17: CPU.2 | G17: UNIDADE: | H17: =VLOOKUP(A15,ORÇAMENTO!$A$10:$I$29,5) -> GL
B19: TIPO ITEM | C19: CODIGO ITEM | D19: DESCRIÇÃO ITEM | E19: UNIDADE ITEM | F19: COEFICIENTE | G19: PRECO UNITARIO | H19: CUSTO TOTAL
B20: INSUMO | C20: 14250 | D20: ENERGIA ELÉTRICA | E20: kwh | F20: 60 | G20: 0.94 | H20: =ROUNDDOWN(F20*G20,2) -> 56.4
B21: INSUMO | C21: 44480 | D21: TARIFA FORNECIMENTO DE ÁGUA/ESGOTO | E21: M3 | F21: 6 | G21: 17.78 | H21: 106.68
B22: COTAÇÃO | C22: MERC. | D22: TELEFONE (PLANO CONTROLE) | E22: UNID | F22: 2 | G22: 59.9 | H22: 119.8
B23: INSUMO | C23: ED-50155 SEINFRA | D23: BANHEIRO QUÍMICO 110 X 120 X 230 CM COM MANUTENÇÃO (CONSIDERANDO OBRAS SIMULTÂNEAS) | E23: MÊS | F23: 2 | G23: 820 | H23: 1640
B24: COMPOSICAO | C24: 90777 | D24: Engenheiro Civil Júnior com encargos complementares | E24: H | F24: 55 | G24: 114.12 | H24: 6276.6
B25: COMPOSICAO | C25: 90776 | D25: Encarregado Geral com encargos complementares | E25: H | F25: 220 | G25: 57.73 | H25: 12700.6
B26: COMPOSICAO | C26: 88321 | D26: Tecnico de Laboratório com encargos complementares | E26: H | F26: 110 | G26: 45.45 | H26: 4999.5
B27: COMPOSICAO | C27: 100309 | D27: Tecnico em Segurança do Trabalho com encargos complementares | E27: H | F27: 55 | G27: 45.71 | H27: 2514.05
B28: COMPOSICAO | C28: 90772 | D28: Auxiliar de escritório com encargos complementares | E28: H | F28: 55 | G28: 23.72 | H28: 1304.6
B29: PRODUÇÃO DA EQUIPE | E29: 0.25 | F29: CUSTO | H29: =SUM(H20:H28) -> 29718.23
B30: TOTAL | H30: =ROUND(H29/E29,2) -> 118872.92 | I30: OK
B31: BDI % | H31: =1+$M$1 -> 1.2135
B32: TOTAL DO SERVIÇO - R$ | H32: =ROUND(H30*H31,2) -> 144252.29
A34: =A15+1 -> 3 | B34: CODEVASF | E34: COMPOSIÇÃO DE PREÇO UNITÁRIO | I34: =H44 -> 9144 | J34: =H46 -> 11096.24
B35: OBRA: | C35: =$C$2 -> PAVIMENTAÇÃO ASFÁLTICA EM CBUQ - VIAS DIVERSAS – BAIRRO INDUSTRIAL (PIRAPORA / MG) - ITEM 2 | G35: DATA: | H35: =$H$2 -> SETEMBRO / 2023
B36: SERVIÇO: | C36: =VLOOKUP(A34,ORÇAMENTO!$A$10:$I$29,3) -> CANTEIRO DE OBRAS | E36: SINAPI | F36: =VLOOKUP(A34,ORÇAMENTO!$A$10:$I$29,4) -> CPU.3 | G36: UNIDADE: | H36: =VLOOKUP(A34,ORÇAMENTO!$A$10:$I$29,5) -> GL
B38: TIPO ITEM | C38: CODIGO ITEM | D38: DESCRIÇÃO ITEM | E38: UNIDADE ITEM | F38: COEFICIENTE | G38: PRECO UNITARIO | H38: CUSTO TOTAL
B39: INSUMO | C39: 10775 | D39: LOCACAO DE CONTAINER COM 1 SANITARIO, PARA ESCRITORIO,COMPLETO, SEM DIVISORIAS INTERNAS | E39: MÊS | F39: 4 | G39: 975 | H39: =ROUNDDOWN(F39*G39,2) -> 3900
B40: INSUMO | C40: 10779 | D40: LOCACAO DE CONTAINER P/ SANITARIO, C/ 5 BACIAS, 1 LAVATORIO E 4 MICTORIOS | E40: MÊS | F40: 4 | G40: 1218.75 | H40: 4875
B41: INSUMO | C41: 37525 | D41: TELA PLASTICA TECIDA LISTRADA BRANCA E LARANJA, TIPO GUARDA CORPO, EM POLIETILENO MONOFILADO, ROLO 1,20 X 50 M (L X C) | E41: M | F41: 100 | G41: 3.69 | H41: 369
H42: 0
B43: PRODUÇÃO DA EQUIPE | E43: 1 | F43: CUSTO | H43: =SUM(H39:H42) -> 9144
B44: TOTAL | H44: =H43/E43 -> 9144 | I44: OK
B45: BDI % | H45: =1+$M$1 -> 1.2135
B46: TOTAL DO SERVIÇO - R$ | H46: =ROUND(H44*H45,2) -> 11096.24
A48: =A34+1 -> 4 | B48: CODEVASF | E48: COMPOSIÇÃO DE PREÇO UNITÁRIO | I48: =H62 -> 340.5 | J48: =H64 -> 413.2
B49: OBRA: | C49: =$C$2 -> PAVIMENTAÇÃO ASFÁLTICA EM CBUQ - VIAS DIVERSAS – BAIRRO INDUSTRIAL (PIRAPORA / MG) - ITEM 2 | G49: DATA: | H49: =$H$2 -> SETEMBRO / 2023
B50: SERVIÇO: | C50: =VLOOKUP(A48,ORÇAMENTO!$A$10:$I$29,3) -> PLACA DE OBRA EM CHAPA DE AÇO GALVANIZADO | E50: SINAPI | F50: =VLOOKUP(A48,ORÇAMENTO!$A$10:$I$29,4) -> 103689 | G50: UNIDADE: | H50: =VLOOKUP(A48,ORÇAMENTO!$A$10:$I$29,5) -> M2
B52: TIPO ITEM | C52: CODIGO ITEM | D52: DESCRIÇÃO ITEM | E52: UNIDADE ITEM | F52: COEFICIENTE | G52: PRECO UNITARIO | H52: CUSTO TOTAL
B53: INSUMO | C53: 4509 | D53: SARRAFO *2,5 X 10* CM EM PINUS, MISTA OU EQUIVALENTE DA REGIAO - BRUTA | E53: M | F53: 3,2083000 | G53: 4,41 | H53: =ROUNDDOWN(F53*G53,2) -> 14.14
B54: INSUMO | C54: 4813 | D54: PLACA DE OBRA (PARA CONSTRUCAO CIVIL) EM CHAPA GALVANIZADA *N. 22*, ADESIVADA, DE *2,4 X 1,2* M (SEM POSTES PARA FIXACAO) | E54: M2 | F54: 1,0000000 | G54: 250,00 | H54: 250
B55: INSUMO | C55: 5065 | D55: PREGO DE ACO POLIDO COM CABECA 10 X 10 | E55: KG | F55: 0,0113000 | G55: 36,57 | H55: 0.41
B56: INSUMO | C56: 5069 | D56: PREGO DE ACO POLIDO COM CABECA 17 X 27 | E56: KG | F56: 0,0132000 | G56: 19,59 | H56: 0.25
B57: COMPOSICAO | C57: 88262 | D57: CARPINTEIRO DE FORMAS COM ENCARGOS COMPLEMENTARES | E57: H | F57: 0,3729000 | G57: 27,05 | H57: 10.08
B58: COMPOSICAO | C58: 88316 | D58: SERVENTE COM ENCARGOS COMPLEMENTARES | E58: H | F58: 1,1186000 | G58: 19,76 | H58: 22.1
B59: COMPOSICAO | C59: 4115 | D59: MADEIRA ROLICA TRATADA, D = 12 A 15 CM, H = 3,00 M, EM EUCALIPTO OU EQUIVALENTE | E59: M | F59: 2 | G59: 21.76 | H59: 43.52
H60: 0
B61: PRODUÇÃO DA EQUIPE | E61: 1 | F61: CUSTO | H61: =SUM(H53:H60) -> 340.5
B62: TOTAL | H62: =H61/E61 -> 340.5 | I62: OK
B63: BDI % | H63: =1+$M$1 -> 1.2135
B64: TOTAL DO SERVIÇO - R$ | H64: =ROUND(H62*H63,2) -> 413.2
A66: =A48+1 -> 5 | B66: CODEVASF | E66: COMPOSIÇÃO DE PREÇO UNITÁRIO | I66: =H78 -> 0.33 | J66: =H80 -> 0.4
B67: OBRA: | C67: =$C$2 -> PAVIMENTAÇÃO ASFÁLTICA EM CBUQ - VIAS DIVERSAS – BAIRRO INDUSTRIAL (PIRAPORA / MG) - ITEM 2 | G67: DATA: | H67: =$H$2 -> SETEMBRO / 2023
B68: SERVIÇO: | C68: =VLOOKUP(A66,ORÇAMENTO!$A$10:$I$29,3) -> SERVIÇOS TOPOGRÁFICOS PARA PAVIMENTAÇÃO, INCLUSIVE NOTA DE SERVIÇO, ACOMPANHAMENTO E GREIDE | E68: SINAPI | F68: =VLOOKUP(A66,ORÇAMENTO!$A$10:$I$29,4) -> 78472 | G68: UNIDADE: | H68: =VLOOKUP(A66,ORÇAMENTO!$A$10:$I$29,5) -> M2
B70: TIPO ITEM | C70: CODIGO ITEM | D70: DESCRIÇÃO ITEM | E70: UNIDADE ITEM | F70: COEFICIENTE | G70: PRECO UNITARIO | H70: CUSTO TOTAL
B71: COMPOSICAO | C71: 88253 | D71: AUXILIAR DE TOPÓGRAFO COM ENCARGOS COMPLEMENTARES | E71: H | F71: 0.0025 | G71: 21.57 | H71: =ROUNDDOWN(F71*G71,2) -> 0.05
B72: COMPOSICAO | C72: 88288 | D72: NIVELADOR COM ENCARGOS COMPLEMENTARES | E72: H | F72: 0.0025 | G72: 26.99 | H72: =ROUNDDOWN(F72*G72,2) -> 0.06
B73: COMPOSICAO | C73: 88316 | D73: SERVENTE COM ENCARGOS COMPLEMENTARES | E73: H | F73: 0.0075 | G73: 19.76 | H73: 0.14
B74: COMPOSICAO | C74: 88597 | D74: DESENHISTA DETALHISTA COM ENCARGOS COMPLEMENTARES | E74: H | F74: 0.002 | G74: 29.72 | H74: 0.05
B75: COMPOSICAO | C75: 92145 | D75: CAMINHONETE CABINE SIMPLES COM MOTOR 1.6 FLEX, CÂMBIO MANUAL, POTÊNCIA 101/104 CV, 2 PORTAS | E75: CHP | F75: 0.0005 | G75: 75.75 | H75: 0.03
H76: =ROUNDDOWN(F76*G76,2) -> 0
B77: PRODUÇÃO DA EQUIPE | E77: 1 | F77: CUSTO | H77: =SUM(H71:H76) -> 0.33
B78: TOTAL | H78: =H77/E77 -> 0.33 | I78: OK
B79: BDI % | H79: =1+$M$1 -> 1.2135
B80: TOTAL DO SERVIÇO - R$ | H80: =ROUND(H78*H79,2) -> 0.4
A82: =A66+1 -> 6 | B82: CODEVASF | E82: COMPOSIÇÃO DE PREÇO UNITÁRIO | I82: =H91 -> 2.2 | J82: =H93 -> 2.67
B83: OBRA: | C83: =$C$2 -> PAVIMENTAÇÃO ASFÁLTICA EM CBUQ - VIAS DIVERSAS – BAIRRO INDUSTRIAL (PIRAPORA / MG) - ITEM 2 | G83: DATA: | H83: =$H$2 -> SETEMBRO / 2023
B84: SERVIÇO: | C84: =VLOOKUP(A82,ORÇAMENTO!$A$10:$I$29,3) -> ESCAVAÇÃO HORIZONTAL EM SOLO DE 1A CATEGORIA | E84: SINAPI | F84: =VLOOKUP(A82,ORÇAMENTO!$A$10:$I$29,4) -> 101116 | G84: UNIDADE: | H84: =VLOOKUP(A82,ORÇAMENTO!$A$10:$I$29,5) -> M3
B86: TIPO ITEM | C86: CODIGO ITEM | D86: DESCRIÇÃO ITEM | E86: UNIDADE ITEM | F86: COEFICIENTE | G86: PRECO UNITARIO | H86: CUSTO TOTAL
B87: COMPOSICAO | C87: 5847 | D87: TRATOR DE ESTEIRAS, POTÊNCIA 170 HP, PESO OPERACIONAL 19 T, CAÇAMBA 5,2 M3 | E87: CHP | F87: 0,0048000 | G87: 253,93 | H87: =ROUNDDOWN(F87*G87,2) -> 1.21
B88: COMPOSICAO | C88: 5849 | D88: TRATOR DE ESTEIRAS, POTÊNCIA 170 HP, PESO OPERACIONAL 19 T, CAÇAMBA 5,2 M3 | E88: CHI | F88: 0,0082000 | G88: 90,40 | H88: =ROUNDDOWN(F88*G88,2) -> 0.74
B89: COMPOSICAO | C89: 88316 | D89: SERVENTE COM ENCARGOS COMPLEMENTARES | E89: H | F89: 0,0131000 | G89: 19,76 | H89: =ROUNDDOWN(F89*G89,2) -> 0.25
B90: PRODUÇÃO DA EQUIPE | E90: 1 | F90: CUSTO | H90: =SUM(H87:H89) -> 2.2
B91: TOTAL | H91: =H90/E90 -> 2.2 | I91: OK
B92: BDI % | H92: =1+$M$1 -> 1.2135
B93: TOTAL DO SERVIÇO - R$ | H93: =ROUND(H91*H92,2) -> 2.67
A95: 7 | B95: CODEVASF | E95: COMPOSIÇÃO DE PREÇO UNITÁRIO | I95: =H105 -> 8.71 | J95: =H107 -> 7.88
B96: OBRA: | C96: =$C$2 -> PAVIMENTAÇÃO ASFÁLTICA EM CBUQ - VIAS DIVERSAS – BAIRRO INDUSTRIAL (PIRAPORA / MG) - ITEM 2 | G96: DATA: | H96: =$H$2 -> SETEMBRO / 2023
B97: SERVIÇO: | C97: =VLOOKUP(A95,ORÇAMENTO!$A$10:$I$29,3) -> CARGA, MANOBRA E DESCARGA DE SOLOS E MATERIAIS GRANULARES EM CAMINHÃO BASCULANTE | E97: SINAPI | F97: =VLOOKUP(A95,ORÇAMENTO!$A$10:$I$29,4) -> 100976 | G97: UNIDADE: | H97: =VLOOKUP(A95,ORÇAMENTO!$A$10:$I$29,5) -> M3
B99: TIPO ITEM | C99: CODIGO ITEM | D99: DESCRIÇÃO ITEM | E99: UNIDADE ITEM | F99: COEFICIENTE | G99: PRECO UNITARIO | H99: CUSTO TOTAL
B100: COMPOSICAO | C100: 5940 | D100: PÁ CARREGADEIRA SOBRE RODAS, POTÊNCIA LÍQUIDA 128 HP, CAPACIDADE DA CAÇAMBA 1,7 A 2,8 M3, PESO OPERACIONAL 11632 KG | E100: CHP | F100: 0,0083000 | G100: 217,72 | H100: =ROUNDDOWN(F100*G100,2) -> 1.8
B101: COMPOSICAO | C101: 5942 | D101: PÁ CARREGADEIRA SOBRE RODAS, POTÊNCIA LÍQUIDA 128 HP, CAPACIDADE DA CAÇAMBA 1,7 A 2,8 M3, PESO OPERACIONAL 11632 KG | E101: CHI | F101: 0,0074000 | G101: 95,85 | H101: =ROUNDDOWN(F101*G101,2) -> 0.7
B102: COMPOSICAO | C102: 89883 | D102: CAMINHÃO BASCULANTE 18 M3, COM CAVALO MECÂNICO DE CAPACIDADE MÁXIMA DE TRAÇÃO COMBINADO DE 45000 KG, POTÊNCIA 330 CV, INCLUSIVE SEMIREBOQUE COM CAÇAMBA METÁLICA | E102: CHP | F102: 0,0153000 | G102: 348,45 | H102: =ROUNDDOWN(F102*G102,2) -> 5.33
B103: COMPOSICAO | C103: 89884 | D103: CAMINHÃO BASCULANTE 18 M3, COM CAVALO MECÂNICO DE CAPACIDADE MÁXIMA DE TRAÇÃO COMBINADO DE 45000 KG, POTÊNCIA 330 CV, INCLUSIVE SEMIREBOQUE COM CAÇAMBA METÁLICA | E103: CHI | F103: 0,0095000 | G103: 93,65 | H103: =ROUNDDOWN(F103*G103,2) -> 0.88
B104: PRODUÇÃO DA EQUIPE | E104: 1 | F104: CUSTO | H104: =SUM(H100:H103) -> 8.71
B105: TOTAL | H105: =H104/E104 -> 8.71 | I105: OK
B106: BDI % | H106: =1+$M$1 -> 1.2135
B107: TOTAL DO SERVIÇO - R$ | H107: 7.88
A109: 8 | B109: CODEVASF | E109: COMPOSIÇÃO DE PREÇO UNITÁRIO | I109: =H123 -> 2.57 | J109: =H125 -> 3.12
B110: OBRA: | C110: =$C$2 -> PAVIMENTAÇÃO ASFÁLTICA EM CBUQ - VIAS DIVERSAS – BAIRRO INDUSTRIAL (PIRAPORA / MG) - ITEM 2 | G110: DATA: | H110: =$H$2 -> SETEMBRO / 2023
B111: SERVIÇO: | C111: =VLOOKUP(A109,ORÇAMENTO!$A$10:$I$29,3) -> REGULARIZAÇÃO E COMPACTAÇÃO DO SUBLEITO | E111: SINAPI | F111: =VLOOKUP(A109,ORÇAMENTO!$A$10:$I$29,4) -> 100576 | G111: UNIDADE: | H111: M2
B113: TIPO ITEM | C113: CODIGO ITEM | D113: DESCRIÇÃO ITEM | E113: UNIDADE ITEM | F113: COEFICIENTE | G113: PRECO UNITARIO | H113: CUSTO TOTAL
B114: COMPOSICAO | C114: 5901 | D114: CAMINHÃO PIPA 10.000 L TRUCADO, PESO BRUTO TOTAL 23.000 KG, CARGA ÚTIL MÁXIMA 15.935 KG, DISTÂNCIA ENTRE EIXOS 4,8 M, POTÊNCIA 230 CV, INCLUSIVE TANQUE DE AÇO PARA TRANSPORTE DE ÁGUA | E114: CHP | F114: 0,0010000 | G114: 294,94 | H114: =ROUNDDOWN(F114*G114,2) -> 0.29
B115: COMPOSICAO | C115: 5903 | D115: CAMINHÃO PIPA 10.000 L TRUCADO, PESO BRUTO TOTAL 23.000 KG, CARGA ÚTIL MÁXIMA 15.935 KG, DISTÂNCIA ENTRE EIXOS 4,8 M, POTÊNCIA 230 CV, INCLUSIVE TANQUE DE AÇO PARA TRANSPORTE DE ÁGUA | E115: CHI | F115: 0,0070000 | G115: 72,55 | H115: 0.5
B116: COMPOSICAO | C116: 5932 | D116: MOTONIVELADORA POTÊNCIA BÁSICA LÍQUIDA (PRIMEIRA MARCHA) 125 HP, PESO BRUTO 13032 KG, LARGURA DA LÂMINA DE 3,7 M | E116: CHP | F116: 0,0001000 | G116: 262,71 | H116: 0.02
B117: COMPOSICAO | C117: 5934 | D117: MOTONIVELADORA POTÊNCIA BÁSICA LÍQUIDA (PRIMEIRA MARCHA) 125 HP, PESO BRUTO 13032 KG, LARGURA DA LÂMINA DE 3,7 M | E117: CHI | F117: 0,0080000 | G117: 109,40 | H117: 0.87
B118: COMPOSICAO | C118: 73436 | D118: ROLO COMPACTADOR VIBRATÓRIO PÉ DE CARNEIRO PARA SOLOS, POTÊNCIA 80 HP, PESO OPERACIONAL SEM/COM LASTRO 7,4 / 8,8 T, LARGURA DE TRABALHO 1,68 M | E118: CHP | F118: 0,0020000 | G118: 163,19 | H118: 0.32
B119: COMPOSICAO | C119: 88316 | D119: SERVENTE COM ENCARGOS COMPLEMENTARES | E119: H | F119: 0,0080000 | G119: 19,76 | H119: 0.15
B120: COMPOSICAO | C120: 93244 | D120: ROLO COMPACTADOR VIBRATÓRIO PÉ DE CARNEIRO PARA SOLOS, POTÊNCIA 80 HP, PESO OPERACIONAL SEM/COM LASTRO 7,4 / 8,8 T, LARGURA DE TRABALHO 1,68 M | E120: CHI | F120: 0,0060000 | G120: 71,18 | H120: 0.42
B122: PRODUÇÃO DA EQUIPE | E122: 1 | F122: CUSTO | H122: =SUM(H114:H121) -> 2.57
B123: TOTAL | H123: =H122/E122 -> 2.57 | I123: OK
B124: BDI % | H124: =1+$M$1 -> 1.2135
B125: TOTAL DO SERVIÇO - R$ | H125: =ROUND(H123*H124,2) -> 3.12
A127: 9 | B127: CODEVASF | E127: COMPOSIÇÃO DE PREÇO UNITÁRIO | I127: =H148 -> 104.79 | J127: =H150 -> 127.16
B128: OBRA: | C128: =$C$2 -> PAVIMENTAÇÃO ASFÁLTICA EM CBUQ - VIAS DIVERSAS – BAIRRO INDUSTRIAL (PIRAPORA / MG) - ITEM 2 | G128: DATA: | H128: =$H$2 -> SETEMBRO / 2023
B129: SERVIÇO: | C129: =VLOOKUP(A127,ORÇAMENTO!$A$10:$I$29,3) -> EXECUÇÃO E COMPACTAÇÃO DE BASE E OU SUB-BASE PARA PAVIMENTAÇÃO DE SOLO BRITA - 50/50 - EXCLUSIVE SOLO, ESCAVAÇÃO, CARGA E TRANSPORTE | E129: SINAPI | F129: =VLOOKUP(A127,ORÇAMENTO!$A$10:$I$29,4) -> 100565 | G129: UNIDADE: | H129: =VLOOKUP(A127,ORÇAMENTO!$A$10:$I$29,5) -> M3
B131: TIPO ITEM | C131: CODIGO ITEM | D131: DESCRIÇÃO ITEM | E131: UNIDADE ITEM | F131: COEFICIENTE | G131: PRECO UNITARIO | H131: CUSTO TOTAL
B132: INSUMO | C132: 4721 | D132: PEDRA BRITADA N. 1 (9,5 a 19 MM) POSTO PEDREIRA/FORNECEDOR, SEM FRETE | E132: M3 | F132: 0,6880000 | G132: 117,64 | H132: =ROUNDDOWN(F132*G132,2) -> 80.93
B133: COMPOSICAO | C133: 5684 | D133: ROLO COMPACTADOR VIBRATÓRIO DE UM CILINDRO AÇO LISO, POTÊNCIA 80 HP, PESO OPERACIONAL MÁXIMO 8,1 T, IMPACTO DINÂMICO 16,15 / 9,5 T, LARGURA DE TRABALHO 1,68 M | E133: CHP | F133: 0,0120000 | G133: 159,98 | H133: 1.91
B134: COMPOSICAO | C134: 5685 | D134: ROLO COMPACTADOR VIBRATÓRIO DE UM CILINDRO AÇO LISO, POTÊNCIA 80 HP, PESO OPERACIONAL MÁXIMO 8,1 T, IMPACTO DINÂMICO 16,15 / 9,5 T, LARGURA DE TRABALHO 1,68 M | E134: CHI | F134: 0,0280000 | G134: 69,53 | H134: 1.94
B135: COMPOSICAO | C135: 5901 | D135: CAMINHÃO PIPA 10.000 L TRUCADO, PESO BRUTO TOTAL 23.000 KG, CARGA ÚTIL MÁXIMA 15.935 KG, DISTÂNCIA ENTRE EIXOS 4,8 M, POTÊNCIA 230 CV, INCLUSIVE TANQUE DE AÇO PARA TRANSPORTE DE ÁGUA | E135: CHP | F135: 0,0040000 | G135: 294,94 | H135: 1.17
B136: COMPOSICAO | C136: 5903 | D136: CAMINHÃO PIPA 10.000 L TRUCADO, PESO BRUTO TOTAL 23.000 KG, CARGA ÚTIL MÁXIMA 15.935 KG, DISTÂNCIA ENTRE EIXOS 4,8 M, POTÊNCIA 230 CV, INCLUSIVE TANQUE DE AÇO PARA TRANSPORTE DE ÁGUA | E136: CHI | F136: 0,0360000 | G136: 72,55 | H136: 2.61
B137: COMPOSICAO | C137: 5921 | D137: GRADE DE DISCO REBOCÁVEL COM 20 DISCOS 24" X 6 MM COM PNEUS PARA TRANSPORTE | E137: CHP | F137: 0,0080000 | G137: 5,47 | H137: 0.04
B138: COMPOSICAO | C138: 5923 | D138: GRADE DE DISCO REBOCÁVEL COM 20 DISCOS 24" X 6 MM COM PNEUS PARA TRANSPORTE | E138: CHI | F138: 0,0320000 | G138: 3,54 | H138: 0.11
B139: COMPOSICAO | C139: 5932 | D139: MOTONIVELADORA POTÊNCIA BÁSICA LÍQUIDA (PRIMEIRA MARCHA) 125 HP, PESO BRUTO 13032 KG, LARGURA DA LÂMINA DE 3,7 M | E139: CHP | F139: 0,0080000 | G139: 262,71 | H139: 2.1
B140: COMPOSICAO | C140: 5934 | D140: MOTONIVELADORA POTÊNCIA BÁSICA LÍQUIDA (PRIMEIRA MARCHA) 125 HP, PESO BRUTO 13032 KG, LARGURA DA LÂMINA DE 3,7 M | E140: CHI | F140: 0,0320000 | G140: 109,40 | H140: 3.5
B141: COMPOSICAO | C141: 88316 | D141: SERVENTE COM ENCARGOS COMPLEMENTARES | E141: H | F141: 0,1600000 | G141: 19,76 | H141: 3.16
B142: COMPOSICAO | C142: 89035 | D142: TRATOR DE PNEUS, POTÊNCIA 85 CV, TRAÇÃO 4X4, PESO COM LASTRO DE 4.675 KG | E142: CHP | F142: 0,0080000 | G142: 135,08 | H142: 1.08
B143: COMPOSICAO | C143: 89036 | D143: TRATOR DE PNEUS, POTÊNCIA 85 CV, TRAÇÃO 4X4, PESO COM LASTRO DE 4.675 KG | E143: CHI | F143: 0,0320000 | G143: 56,48 | H143: 1.8
B144: COMPOSICAO | C144: 96463 | D144: ROLO COMPACTADOR DE PNEUS, ESTATICO, PRESSAO VARIAVEL, POTENCIA 110 HP, PESO SEM/COM LASTRO 10,8/27 T, LARGURA DE ROLAGEM 2,30 M | E144: CHP | F144: 0,0050000 | G144: 218,21 | H144: 1.09
B145: COMPOSICAO | C145: 96464 | D145: ROLO COMPACTADOR DE PNEUS, ESTATICO, PRESSAO VARIAVEL, POTENCIA 110 HP, PESO SEM/COM LASTRO 10,8/27 T, LARGURA DE ROLAGEM 2,30 M | E145: CHI | F145: 0,0350000 | G145: 95,83 | H145: 3.35
H146: 0
B147: PRODUÇÃO DA EQUIPE | E147: 1 | F147: CUSTO | H147: =SUM(H132:H146) -> 104.79
B148: TOTAL | H148: =H147/E147 -> 104.79 | I148: OK
B149: BDI % | H149: =1+$M$1 -> 1.2135
B150: TOTAL DO SERVIÇO - R$ | H150: =ROUND(H148*H149,2) -> 127.16
A152: 10 | B152: CODEVASF | E152: COMPOSIÇÃO DE PREÇO UNITÁRIO | I152: =H167 -> 1.23 | J152: =H169 -> 1.49
B153: OBRA: | C153: =$C$2 -> PAVIMENTAÇÃO ASFÁLTICA EM CBUQ - VIAS DIVERSAS – BAIRRO INDUSTRIAL (PIRAPORA / MG) - ITEM 2 | G153: DATA: | H153: =$H$2 -> SETEMBRO / 2023
B154: SERVIÇO: | C154: =VLOOKUP(A152,ORÇAMENTO!$A$10:$I$29,3) -> IMPRIMAÇÃO COM EMULSÃO ASFÁLTICA (EAI) | E154: SINAPI | F154: =VLOOKUP(A152,ORÇAMENTO!$A$10:$I$29,4) -> 96401 | G154: UNIDADE: | H154: =VLOOKUP(A152,ORÇAMENTO!$A$10:$I$29,5) -> M2
B156: TIPO ITEM | C156: CODIGO ITEM | D156: DESCRIÇÃO ITEM | E156: UNIDADE ITEM | F156: COEFICIENTE | G156: PRECO UNITARIO | H156: CUSTO TOTAL
B157: COMPOSICAO | C157: 5839 | D157: VASSOURA MECÂNICA REBOCÁVEL COM ESCOVA CILÍNDRICA, LARGURA ÚTIL DE VARRIMENTO DE 2,44 M | E157: CHP | F157: 0,0020000 | G157: 10.3 | H157: =ROUNDDOWN(F157*G157,2) -> 0.02
B158: COMPOSICAO | C158: 5841 | D158: VASSOURA MECÂNICA REBOCÁVEL COM ESCOVA CILÍNDRICA, LARGURA ÚTIL DE VARRIMENTO DE 2,44 M | E158: CHI | F158: 0,0040000 | G158: 5.18 | H158: 0.02
B159: INSUMO | C159: ANP | D159: EMULSÃO ASFÁLTICA PARA IMPRIMAÇÃO (FORNECIMENTO COM BDI DIFERENCIADO) | E159: T | F159: =1.3/1000 -> 0.0013 | H159: 0
B160: COMPOSICAO | C160: 83362 | D160: ESPARGIDOR DE ASFALTO PRESSURIZADO, TANQUE 6 M3 COM ISOLAÇÃO TÉRMICA, AQUECIDO COM 2 MAÇARICOS, COM BARRA ESPARGIDORA 3,60 M, MONTADO SOBRE CAMINHÃO TOCO, PBT 14.300 KG, POTÊNCIA 185 CV | E160: CHP | F160: 0,0010000 | G160: 256.34 | H160: 0.25
B161: COMPOSICAO | C161: 88316 | D161: SERVENTE COM ENCARGOS COMPLEMENTARES | E161: H | F161: 0,0060000 | G161: 19.76 | H161: 0.11
B162: COMPOSICAO | C162: 89035 | D162: TRATOR DE PNEUS, POTÊNCIA 85 CV, TRAÇÃO 4X4, PESO COM LASTRO DE 4.675 KG | E162: CHP | F162: 0,0020000 | G162: 135.08 | H162: 0.27
B163: COMPOSICAO | C163: 89036 | D163: TRATOR DE PNEUS, POTÊNCIA 85 CV, TRAÇÃO 4X4, PESO COM LASTRO DE 4.675 KG | E163: CHI | F163: 0,0040000 | G163: 56.48 | H163: 0.22
B164: COMPOSICAO | C164: 91486 | D164: ESPARGIDOR DE ASFALTO PRESSURIZADO, TANQUE 6 M3 COM ISOLAÇÃO TÉRMICA, AQUECIDO COM 2 MAÇARICOS, COM BARRA ESPARGIDORA 3,60 M, MONTADO SOBRE CAMINHÃO TOCO, PBT 14.300 KG, POTÊNCIA 185 CV | E164: CHI | F164: 0,0050000 | G164: 68.43 | H164: 0.34
H165: 0
B166: PRODUÇÃO DA EQUIPE | E166: 1 | F166: CUSTO | H166: =SUM(H157:H165) -> 1.23
B167: TOTAL | H167: =H166/E166 -> 1.23 | I167: OK
B168: BDI % | H168: =1+$M$1 -> 1.2135
B169: TOTAL DO SERVIÇO - R$ | H169: =ROUND(H167*H168,2) -> 1.49
A171: 11 | B171: CODEVASF | E171: COMPOSIÇÃO DE PREÇO UNITÁRIO | I171: =H186 -> 1.01 | J171: =H188 -> 1.23
B172: OBRA: | C172: =$C$2 -> PAVIMENTAÇÃO ASFÁLTICA EM CBUQ - VIAS DIVERSAS – BAIRRO INDUSTRIAL (PIRAPORA / MG) - ITEM 2 | G172: DATA: | H172: =$H$2 -> SETEMBRO / 2023
B173: SERVIÇO: | C173: =VLOOKUP(A171,ORÇAMENTO!$A$10:$I$29,3) -> PINTURA DE LIGAÇÃO COM EMULSÃO ASFÁLTICA RR-1C | E173: SINAPI | F173: =VLOOKUP(A171,ORÇAMENTO!$A$10:$I$29,4) -> 96402 | G173: UNIDADE: | H173: M2
B175: TIPO ITEM | C175: CODIGO ITEM | D175: DESCRIÇÃO ITEM | E175: UNIDADE ITEM | F175: COEFICIENTE | G175: PRECO UNITARIO | H175: CUSTO TOTAL
B176: COMPOSICAO | C176: 5839 | D176: VASSOURA MECÂNICA REBOCÁVEL COM ESCOVA CILÍNDRICA, LARGURA ÚTIL DE VARRIMENTO DE 2,44 M | E176: CHP | F176: 0,0020000 | G176: 10.3 | H176: =ROUNDDOWN(F176*G176,2) -> 0.02
B177: COMPOSICAO | C177: 5841 | D177: VASSOURA MECÂNICA REBOCÁVEL COM ESCOVA CILÍNDRICA, LARGURA ÚTIL DE VARRIMENTO DE 2,44 M | E177: CHI | F177: 0,0040000 | G177: 5.18 | H177: 0.02
B178: INSUMO | C178: ANP | D178: EMULSAO ASFALTICA CATIONICA RR-2C PARA USO EM PAVIMENTACAO ASFALTICA (COLETADO CAIXA NA ANP ACRESCIDO DE ICMS) | E178: KG | F178: 0,4500000 | H178: 0
B179: COMPOSICAO | C179: 83362 | D179: ESPARGIDOR DE ASFALTO PRESSURIZADO, TANQUE 6 M3 COM ISOLAÇÃO TÉRMICA, AQUECIDO COM 2 MAÇARICOS, COM BARRA ESPARGIDORA 3,60 M, MONTADO SOBRE CAMINHÃO TOCO, PBT 14.300 KG, POTÊNCIA 185 CV | E179: CHP | F179: 0,0004000 | G179: 256.34 | H179: 0.1
B180: COMPOSICAO | C180: 88316 | D180: SERVENTE COM ENCARGOS COMPLEMENTARES | E180: H | F180: 0,0055000 | G180: 19.76 | H180: 0.1
B181: COMPOSICAO | C181: 89035 | D181: TRATOR DE PNEUS, POTÊNCIA 85 CV, TRAÇÃO 4X4, PESO COM LASTRO DE 4.675 KG | E181: CHP | F181: 0,0017000 | G181: 135.08 | H181: 0.22
B182: COMPOSICAO | C182: 89036 | D182: TRATOR DE PNEUS, POTÊNCIA 85 CV, TRAÇÃO 4X4, PESO COM LASTRO DE 4.675 KG | E182: CHI | F182: 0,0038000 | G182: 56.48 | H182: 0.21
B183: COMPOSICAO | C183: 91486 | D183: ESPARGIDOR DE ASFALTO PRESSURIZADO, TANQUE 6 M3 COM ISOLAÇÃO TÉRMICA, AQUECIDO COM 2 MAÇARICOS, COM BARRA ESPARGIDORA 3,60 M, MONTADO SOBRE CAMINHÃO TOCO, PBT 14.300 KG, POTÊNCIA 185 CV | E183: CHI | F183: 0,0051000 | G183: 68.43 | H183: 0.34
H184: 0
B185: PRODUÇÃO DA EQUIPE | E185: 1 | F185: CUSTO | H185: =SUM(H176:H184) -> 1.01
B186: TOTAL | H186: =H185/E185 -> 1.01 | I186: OK
B187: BDI % | H187: =1+$M$1 -> 1.2135
B188: TOTAL DO SERVIÇO - R$ | H188: =ROUND(H186*H187,2) -> 1.23
A190: 12 | B190: CODEVASF | E190: COMPOSIÇÃO DE PREÇO UNITÁRIO | I190: =H208 -> 129.6 | J190: =H210 -> 157.27
B191: OBRA: | C191: =$C$2 -> PAVIMENTAÇÃO ASFÁLTICA EM CBUQ - VIAS DIVERSAS – BAIRRO INDUSTRIAL (PIRAPORA / MG) - ITEM 2 | G191: DATA: | H191: =$H$2 -> SETEMBRO / 2023
B192: SERVIÇO: | C192: =VLOOKUP(A190,ORÇAMENTO!$A$10:$I$29,3) -> EXECUÇÃO DE PAVIMENTO COM APLICAÇÃO DE CONCRETO ASFÁLTICO USINADO A QUENTE (CBUQ), CAMADA DE ROLAMENTO - EXCLUSIVE TRANSPORTE | E192: SINAPI | F192: =VLOOKUP(A190,ORÇAMENTO!$A$10:$I$29,4) -> 95995 | G192: UNIDADE: | H192: =VLOOKUP(A190,ORÇAMENTO!$A$10:$I$29,5) -> M3
B194: TIPO ITEM | C194: CODIGO ITEM | D194: DESCRIÇÃO ITEM | E194: UNIDADE ITEM | F194: COEFICIENTE | G194: PRECO UNITARIO | H194: CUSTO TOTAL
B195: INSUMO | C195: COTAÇÃO | D195: CONCRETO BETUMINOSO USINADO A QUENTE (CBUQ) PARA PAVIMENTACAO ASFALTICA, PADRAO DNIT, FAIXA C, COM CAP 50/70 - AQUISICAO POSTO USINA (FORNECIMENTO COM BDI DIFERENCIADO) | E195: T | F195: 2,5548000 | H195: =ROUNDDOWN(F195*G195,2) -> 0 | K195: 602.5
B196: COMPOSICAO | C196: 5835 | D196: VIBROACABADORA DE ASFALTO SOBRE ESTEIRAS, LARGURA DE PAVIMENTAÇÃO 1,90 M A 5,30 M, POTÊNCIA 105 HP CAPACIDADE 450 T/H | E196: CHP | F196: 0,0464000 | G196: 396,75 | H196: 18.4
B197: COMPOSICAO | C197: 5837 | D197: VIBROACABADORA DE ASFALTO SOBRE ESTEIRAS, LARGURA DE PAVIMENTAÇÃO 1,90 M A 5,30 M, POTÊNCIA 105 HP CAPACIDADE 450 T/H | E197: CHI | F197: 0,0949000 | G197: 165,12 | H197: 15.66
B198: COMPOSICAO | C198: 88314 | D198: RASTELEIRO COM ENCARGOS COMPLEMENTARES | E198: H | F198: 1,1301000 | G198: 26,52 | H198: 29.97
B199: COMPOSICAO | C199: 91386 | D199: CAMINHÃO BASCULANTE 10 M3, TRUCADO CABINE SIMPLES, PESO BRUTO TOTAL 23.000 KG, CARGA ÚTIL MÁXIMA 15.935 KG, DISTÂNCIA ENTRE EIXOS 4,80 M, POTÊNCIA 230 CV INCLUSIVE CAÇAMBA METÁLICA | E199: CHP | F199: 0,0464000 | G199: 252,13 | H199: 11.69
B200: COMPOSICAO | C200: 95631 | D200: ROLO COMPACTADOR VIBRATORIO TANDEM, ACO LISO, POTENCIA 125 HP, PESO SEM/COM LASTRO 10,20/11,65 T, LARGURA DE TRABALHO 1,73 M | E200: CHP | F200: 0,0805000 | G200: 228,02 | H200: 18.35
B201: COMPOSICAO | C201: 95632 | D201: ROLO COMPACTADOR VIBRATORIO TANDEM, ACO LISO, POTENCIA 125 HP, PESO SEM/COM LASTRO 10,20/11,65 T, LARGURA DE TRABALHO 1,73 M | E201: CHI | F201: 0,0607000 | G201: 89,32 | H201: 5.42
B202: COMPOSICAO | C202: 96155 | D202: TRATOR DE PNEUS COM POTÊNCIA DE 85 CV, TRAÇÃO 4X4, COM VASSOURA MECÂNICA ACOPLADA | E202: CHI | F202: 0,1071000 | G202: 61,42 | H202: 6.57
B203: COMPOSICAO | C203: 96157 | D203: TRATOR DE PNEUS COM POTÊNCIA DE 85 CV, TRAÇÃO 4X4, COM VASSOURA MECÂNICA ACOPLADA | E203: CHP | F203: 0,0341000 | G203: 144,29 | H203: 4.92
B204: COMPOSICAO | C204: 96463 | D204: ROLO COMPACTADOR DE PNEUS, ESTATICO, PRESSAO VARIAVEL, POTENCIA 110 HP, PESO SEM/COM LASTRO 10,8/27 T, LARGURA DE ROLAGEM 2,30 M | E204: CHP | F204: 0,0419000 | G204: 218,21 | H204: 9.14
B205: COMPOSICAO | C205: 96464 | D205: ROLO COMPACTADOR DE PNEUS, ESTATICO, PRESSAO VARIAVEL, POTENCIA 110 HP, PESO SEM/COM LASTRO 10,8/27 T, LARGURA DE ROLAGEM 2,30 M | E205: CHI | F205: 0,0990000 | G205: 95,83 | H205: 9.48
H206: 0
B207: PRODUÇÃO DA EQUIPE | E207: 1 | F207: CUSTO | H207: =SUM(H195:H206) -> 129.6
B208: TOTAL | H208: =H207/E207 -> 129.6 | I208: OK
B209: BDI % | H209: =1+$M$1 -> 1.2135
B210: TOTAL DO SERVIÇO - R$ | H210: =ROUND(H208*H209,2) -> 157.27
A212: 13 | B212: CODEVASF | E212: COMPOSIÇÃO DE PREÇO UNITÁRIO | I212: =H221 -> 1.78 | J212: =H223 -> 2.16
B213: OBRA: | C213: =$C$2 -> PAVIMENTAÇÃO ASFÁLTICA EM CBUQ - VIAS DIVERSAS – BAIRRO INDUSTRIAL (PIRAPORA / MG) - ITEM 2 | G213: DATA: | H213: =$H$2 -> SETEMBRO / 2023
B214: SERVIÇO: | C214: =VLOOKUP(A212,ORÇAMENTO!$A$10:$I$29,3) -> TRANSPORTE COM CAMINHÃO BASCULANTE, EM VIA URBANA PAVIMENTADA | E214: SINAPI | F214: =VLOOKUP(A212,ORÇAMENTO!$A$10:$I$29,4) -> 95877 | G214: UNIDADE: | H214: =VLOOKUP(A212,ORÇAMENTO!$A$10:$I$29,5) -> M3XKM
B216: TIPO ITEM | C216: CODIGO ITEM | D216: DESCRIÇÃO ITEM | E216: UNIDADE ITEM | F216: COEFICIENTE | G216: PRECO UNITARIO | H216: CUSTO TOTAL
B217: COMPOSICAO | C217: 89883 | D217: CAMINHÃO BASCULANTE 18 M3, COM CAVALO MECÂNICO DE CAPACIDADE MÁXIMA DE TRAÇÃO COMBINADO DE 45000 KG, POTÊNCIA 330 CV, INCLUSIVE SEMIREBOQUE COM CAÇAMBA METÁLICA | E217: CHP | F217: 0,0046000 | G217: 348.45 | H217: =ROUNDDOWN(F217*G217,2) -> 1.6
B218: COMPOSICAO | C218: 89884 | D218: CAMINHÃO BASCULANTE 18 M3, COM CAVALO MECÂNICO DE CAPACIDADE MÁXIMA DE TRAÇÃO COMBINADO DE 45000 KG, POTÊNCIA 330 CV, INCLUSIVE SEMIREBOQUE COM CAÇAMBA METÁLICA | E218: CHI | F218: 0,0020000 | G218: 93.65 | H218: =ROUNDDOWN(F218*G218,2) -> 0.18
H219: =ROUNDDOWN(F219*G219,2) -> 0
B220: PRODUÇÃO DA EQUIPE | E220: 1 | F220: CUSTO | H220: =SUM(H217:H219) -> 1.78
B221: TOTAL | H221: =H220/E220 -> 1.78 | I221: OK
B222: BDI % | H222: =1+$M$1 -> 1.2135
B223: TOTAL DO SERVIÇO - R$ | H223: =ROUND(H221*H222,2) -> 2.16
A225: 13.5 | B225: CODEVASF | E225: COMPOSIÇÃO DE PREÇO UNITÁRIO | I225: =H234 -> 0.73 | J225: =H236 -> 0.89
B226: OBRA: | C226: =$C$2 -> PAVIMENTAÇÃO ASFÁLTICA EM CBUQ - VIAS DIVERSAS – BAIRRO INDUSTRIAL (PIRAPORA / MG) - ITEM 2 | G226: DATA: | H226: =$H$2 -> SETEMBRO / 2023
B227: SERVIÇO: | C227: =VLOOKUP(A225,ORÇAMENTO!$A$10:$I$29,3) -> TRANSPORTE COM CAMINHÃO BASCULANTE, EM VIA URBANA PAVIMENTADA - ADICIONAL PARA DMT EXCEDENTE A 30KM | E227: SINAPI | F227: =VLOOKUP(A225,ORÇAMENTO!$A$10:$I$29,4) -> 95427 | G227: UNIDADE: | H227: =VLOOKUP(A225,ORÇAMENTO!$A$10:$I$29,5) -> M3XKM
... 124 more rows

Sheet BDI SERV
B1: DETALHAMENTO DO BDI - SERVIÇOS
B4: Item | C4: Descrição dos Serviços | D4: % | E4: %
D5: PV | E5: CD
B7: 1 | C7: ADMINISTRAÇÃO CENTRAL | E7: 4.01
B8: 1.1 | C8: ESCRITÓRIO CENTRAL
B9: 1.2 | C9: VIAGENS
B10: 1.3 | C10: OUTROS
B12: 2 | C12: IMPOSTOS E TAXAS | D12: =SUM(D13:D16) -> 6.15 | E12: =SUM(E13:E16) -> 7.69
B13: 2.1 | C13: ISS (*) | D13: =5*0.5 -> 2.5 | E13: =ROUND(D13*1.2515,2) -> 3.13
B14: 2.2 | C14: PIS | D14: 0.65 | E14: =ROUND(D14*1.2515,2) -> 0.81
B15: 2.3 | C15: Cofins | D15: 3 | E15: =ROUND(D15*1.2515,2) -> 3.75
B16: 2.4 | C16: CONTRIBUIÇÃO PREVIDENCIÁRIA SOBRE A RENDA BRUTA | D16: 0 | E16: =ROUND(D16*1.2515,2) -> 0
B18: 3 | C18: TAXA DE RISCO | E18: =SUM(E19:E22) -> 0.96
B19: 3.1 | C19: SEGURO | E19: 0.2
B20: 3.2 | C20: RISCO | E20: 0.56
B21: 3.3 | C21: GARANTIA | E21: 0.2
B23: 4 | C23: DESPESAS FINANCEIRAS | E23: 1.11
B25: 5 | C25: LUCRO | E25: 7.3
C27: BDI - CALCULADO | E27: =ROUND((((1+(E7+E18)/100)*(1+E23/100)*(1+E25/100)/(1-D12/100)-1)*100),2) -> 21.35
A29: BDI = ((1+((AC+S+R+G)/100))x(1+DF/100)x(1+L/100)/(1-I/100)-1)*100
B31: BDI (CALCULADO): | D31: =ROUND((((1+((E7+E18)/100))*(1+E23/100)*(1+E25/100))/(1-D12/100)-1)*100,2) -> 21.35 | E31: %
A33: (*) ISS CONFORME LEI MUNICIPAL Nº 1.815 / 2005 - Considerando as deduções previstas no Art. 106 - § 2º (Dedução de 50% sem necessidade de comprovação)
A37: BDI EM CONFORMIDADE COM OS ACÓRDÃOS Nº 2369/2011 e ACÓRDÃO Nº 2.622/2013 - TCU - PLENÁRIO

Sheet BDI FORN
B1: DETALHAMENTO DO BDI - FORNECIMENTO (MATERIAL ASFÁLTICO)
B4: Item | C4: Descrição dos Serviços | D4: % | E4: %
D5: PV | E5: CD
B7: 1 | C7: ADMINISTRAÇÃO CENTRAL | E7: 3.72
B8: 1.1 | C8: ESCRITÓRIO CENTRAL
B9: 1.2 | C9: VIAGENS
B10: 1.3 | C10: OUTROS
B12: 2 | C12: IMPOSTOS E TAXAS | D12: =SUM(D13:D16) -> 3.65 | E12: =SUM(E13:E16) -> 4.56
B13: 2.1 | C13: ISS (*) | E13: =ROUND(D13*1.2515,2) -> 0
B14: 2.2 | C14: PIS | D14: 0.65 | E14: =ROUND(D14*1.2515,2) -> 0.81
B15: 2.3 | C15: Cofins | D15: 3 | E15: =ROUND(D15*1.2515,2) -> 3.75
B16: 2.4 | C16: CONTRIBUIÇÃO PREVIDENCIÁRIA SOBRE A RENDA BRUTA | D16: 0 | E16: =ROUND(D16*1.2515,2) -> 0
B18: 3 | C18: TAXA DE RISCO | E18: =SUM(E19:E22) -> 0.82
B19: 3.1 | C19: SEGURO | E19: 0.16
B20: 3.2 | C20: RISCO | E20: 0.5
B21: 3.3 | C21: GARANTIA | E21: 0.16
B23: 4 | C23: DESPESAS FINANCEIRAS | E23: 0.94
B25: 5 | C25: LUCRO | E25: 5
C27: BDI - CALCULADO | E27: =ROUND((((1+(E7+E18)/100)*(1+E23/100)*(1+E25/100)/(1-D12/100)-1)*100),2) -> 15
A29: BDI = ((1+((AC+S+R+G)/100))x(1+DF/100)x(1+L/100)/(1-I/100)-1)*100
B31: BDI (CALCULADO): | D31: =ROUND((((1+((E7+E18)/100))*(1+E23/100)*(1+E25/100))/(1-D12/100)-1)*100,2) -> 15 | E31: %
A37: BDI EM CONFORMIDADE COM OS ACÓRDÃOS Nº 2369/2011 e ACÓRDÃO Nº 2.622/2013 - TCU - PLENÁRIO

Sheet CRONOGRAMA
B1: CRONOGRAMA FÍSICO-FINANCEIRO
B2: OBRA: | C2: =ORÇAMENTO!C5 -> PAVIMENTAÇÃO ASFÁLTICA EM CBUQ - VIAS DIVERSAS – BAIRRO INDUSTRIAL (PIRAPORA / MG) - ITEM 2 | F2: VALOR: | G2: =ORÇAMENTO!I37 -> 2488665.12
F3: PRAZO: | G3: 180 DIAS
B5: ITEM | C5: ETAPAS/DESCRIÇAO | D5: FISICO/ FINANCEIRO | E5: TOTAL ETAPAS | F5: MÊS 1 | G5: MÊS 2 | H5: MÊS 3 | I5: MÊS 4 | J5: TOTAL
A6: A | B6: =VLOOKUP(A6,ORÇAMENTO!$A$9:$I$37,2) -> 1 | C6: =VLOOKUP(A6,ORÇAMENTO!$A$9:$I$37,3) -> SERVIÇOS PRELIMINARES | D6: FISICO | E6: =ROUND(E7/$G$2,4) -> 0.0837 | F6: 0.25 | G6: 0.25 | H6: 0.25 | I6: 0.25 | J6: =SUM(F6:I6) -> 1
D7: FINANCEIRO | E7: =ORÇAMENTO!I9 -> 208282.88 | F7: =ROUND($E$7*F6,2) -> 52070.72 | G7: 52070.72 | H7: 52070.72 | I7: 52070.72 | J7: =SUM(F7:I7) -> 208282.88
A8: B | B8: =VLOOKUP(A8,ORÇAMENTO!$A$9:$I$37,2) -> 2 | C8: =VLOOKUP(A8,ORÇAMENTO!$A$9:$I$37,3) -> TERRAPLANAGEM E PAVIMENTAÇÃO | D8: FISICO | E8: =ROUND(E9/$G$2,4) -> 0.2208 | F8: 0.25 | G8: 0.25 | H8: 0.25 | I8: 0.25 | J8: =SUM(F8:I8) -> 1
D9: FINANCEIRO | E9: =ORÇAMENTO!I15 -> 549537.9 | F9: =ROUND($E$9*F8,2) -> 137384.48 | G9: 137384.48 | H9: 137384.48 | I9: 137384.48 | J9: =SUM(F9:I9) -> 549537.92
A10: C | B10: =VLOOKUP(A10,ORÇAMENTO!$A$9:$I$37,2) -> 3 | C10: =VLOOKUP(A10,ORÇAMENTO!$A$9:$I$37,3) -> TRANSPORTE DE MATERIAIS | D10: FISICO | E10: =ROUND(E11/$G$2,4) -> 0.2123 | F10: 0.25 | G10: 0.25 | H10: 0.25 | I10: 0.25 | J10: =SUM(F10:I10) -> 1
D11: FINANCEIRO | E11: =ORÇAMENTO!I23 -> 528298.98 | F11: =ROUND($E$11*F10,2) -> 132074.75 | G11: 132074.75 | H11: 132074.75 | I11: 132074.75 | J11: =SUM(F11:I11)-0.04 -> 528298.96
A12: D | B12: =VLOOKUP(A12,ORÇAMENTO!$A$9:$I$37,2) -> 4 | C12: =VLOOKUP(A12,ORÇAMENTO!$A$9:$I$37,3) -> OBRAS COMPLEMENTARES | D12: FISICO | E12: =ROUND(E13/$G$2,4) -> 0.1154 | F12: 0 | G12: 0.3 | H12: 0.4 | I12: 0.3 | J12: =SUM(F12:I12) -> 1
D13: FINANCEIRO | E13: =ORÇAMENTO!I28 -> 287257.22 | F13: =ROUND($E$13*F12,2) -> 0 | G13: 86177.17 | H13: 114902.89 | I13: 86177.17 | J13: =SUM(F13:I13)-0.02 -> 287257.21
A14: E | B14: =VLOOKUP(A14,ORÇAMENTO!$A$9:$I$37,2) -> 5 | C14: =VLOOKUP(A14,ORÇAMENTO!$A$9:$I$37,3) -> FORNECIMENTOS - MATERIAL ASFÁLTICO (BDI DIFERENCIADO) | D14: FISICO | E14: =ROUND(E15/$G$2,4) -> 0.3678 | F14: 0.25 | G14: 0.25 | H14: 0.25 | I14: 0.25 | J14: =SUM(F14:I14) -> 1
D15: FINANCEIRO | E15: =ORÇAMENTO!I33 -> 915288.14 | F15: =ROUND($E$15*F14,2) -> 228822.04 | G15: 228822.04 | H15: 228822.04 | I15: 228822.04 | J15: =SUM(F15:I15)-0.02 -> 915288.14
B16: TOTAL | D16: FISICO | E16: =SUM(F16:I16) -> 1.000000028 | F16: =F17/$E$17 -> 0.2211434498 | G16: 0.2557713189 | H16: 0.2673139406 | I16: 0.2557713189 | J16: =SUM(F16:I16) -> 1.000000028
D17: FINANCEIRO | E17: =E11+E9+E7+E13+E15 -> 2488665.12 | F17: 550351.99 | G17: 636529.16 | H17: 665254.88 | I17: 636529.16 | J17: =SUM(F17:I17)-0.07 -> 2488665.12
B19: OBSERVAÇÕES:
